bitfinex/quotes_SOLUSD_20260114
["timestamp","ask_amount","ask_price","bid_price","bid_amount"]
[1768375197947,4.01485368,144.6,144.58,0.71186968]
[1768375198146,4.01485368,144.6,144.57,63.0]
[1768375198553,4.01485368,144.61,144.57,63.0]
[1768375198943,4.01485368,144.61,144.58,0.71186968]
[1768375200943,4.01485368,144.6,144.58,0.71186968]
[1768375201257,4.01485368,144.61,144.58,0.71186968]
[1768375201459,6.91439659,144.63,144.58,0.71186968]
[1768375201844,4.01485368,144.62,144.57,0.2]
[1768375202038,4.01485368,144.62,144.57,0.91186968]
[1768375202238,4.01485368,144.62,144.57,0.2]
[1768375202657,6.91439659,144.63,144.57,0.91186968]
[1768375203264,4.01485368,144.62,144.58,0.71186968]
[1768375204666,4.01485368,144.63,144.58,0.71186968]
[1768375205166,4.01485368,144.62,144.58,0.71186968]
[1768375205365,4.01485368,144.61,144.57,0.2]
[1768375206275,6.91321474,144.66,144.58,0.70277382]
[1768375206564,4.01485368,144.64,144.58,0.70277382]
[1768375207149,4.01485368,144.63,144.58,0.70277382]
[1768375207967,4.01485368,144.63,144.57,0.90277382]
[1768375208269,4.01485368,144.63,144.58,0.70277382]
[1768375212276,4.01485368,144.64,144.58,0.70277382]
[1768375215066,4.01485368,144.65,144.58,0.70277382]
[1768375215268,16.61485368,144.66,144.58,0.70277382]
[1768375215475,16.61485368,144.66,144.59,0.70277382]
[1768375216762,16.61485368,144.66,144.59,6.46322018]
[1768375217164,12.6,144.66,144.59,6.46322018]
[1768375217379,16.61485368,144.66,144.59,6.46322018]
[1768375217674,16.61485368,144.66,144.6,0.70277382]
[1768375217877,4.01485368,144.65,144.6,0.70277382]
[1768375219687,7.7691831,144.67,144.61,0.6640664]
[1768375219688,4.87168988,144.67,144.61,0.6640664]
[1768375221188,0.8568362,144.67,144.61,0.6640664]
[1768375225581,2.56677871,144.66,144.61,0.6640664]
[1768375233379,3.42361491,144.67,144.61,0.6640664]
[1768375237708,3.42361491,144.67,144.6,0.66444392]
[1768375240006,2.56677871,144.66,144.6,0.66444392]
[1768375241505,2.56677871,144.65,144.6,0.66444392]
[1768375241704,2.56677871,144.62,144.59,0.66444392]
[1768375242078,2.56677871,144.63,144.59,0.66444392]
[1768375247210,2.56677871,144.6,144.57,0.86444392]
[1768375247398,2.56677871,144.6,144.58,0.66444392]
[1768375247600,2.56677871,144.61,144.58,0.66444392]
[1768375248704,2.56677871,144.62,144.58,0.66444392]
[1768375249100,2.56677871,144.61,144.58,0.66444392]
[1768375250409,2.56677871,144.61,144.58,0.60444392]
[1768375250905,2.56677871,144.62,144.56,0.2]
[1768375251097,2.56677871,144.59,144.56,0.2]
[1768375252289,2.56677871,144.59,144.56,0.86444392]
[1768375252994,24.19701625,144.65,144.57,0.66444392]
[1768375253216,2.56677871,144.63,144.57,0.66444392]
[1768375253409,2.56677871,144.62,144.57,0.66444392]
[1768375253910,2.56677871,144.64,144.58,0.66444392]
[1768375254813,6.91323885,144.65,144.58,0.66444392]
[1768375255019,2.56677871,144.64,144.58,0.66444392]
[1768375255315,2.56677871,144.6,144.57,0.66444392]
[1768375255503,2.56677871,144.6,144.56,0.2]
[1768375255704,2.56677871,144.59,144.56,0.2]
[1768375255903,2.56677871,144.59,144.57,0.66444392]
[1768375256219,1.19331275,144.59,144.58,0.66444392]
[1768375256519,0.66315915,144.62,144.58,0.66444392]
[1768375256715,1.84177871,144.59,144.56,0.49668566]
[1768375257018,1.84177871,144.59,144.57,0.29668566]
[1768375257912,2.09235764,144.59,144.56,0.2]
[1768375258126,1.42919849,144.59,144.57,0.29668566]
[1768375259625,2.56677871,144.59,144.57,0.29668566]
[1768375259798,2.56677871,144.59,144.54,0.2]
[1768375259799,0.66315915,144.57,144.54,0.2]
[1768375260003,2.56677871,144.55,144.53,0.2]
[1768375260316,2.42039293,144.55,144.53,0.2]
[1768375260517,2.42039293,144.55,144.53,0.86444392]
[1768375261616,2.56677871,144.54,144.51,0.2]
[1768375261814,6.91783361,144.56,144.51,0.2]
[1768375261815,3.22993786,144.53,144.51,0.2]
[1768375262119,2.56677871,144.53,144.51,0.2]
[1768375262313,0.66315915,144.55,144.51,0.2]
[1768375262314,2.56677871,144.54,144.51,0.2]
[1768375262520,2.56677871,144.52,144.48,0.2]
[1768375262821,0.66315915,144.5,144.48,0.2]
[1768375263035,2.56677871,144.51,144.49,0.69540095]
[1768375263536,12.6,144.54,144.49,0.69540095]
[1768375263827,2.56677871,144.5,144.48,0.2]
[1768375264198,2.56677871,144.5,144.48,0.69540095]
[1768375264403,2.56677871,144.51,144.48,0.69540095]
[1768375265421,0.66830148,144.5,144.48,0.2]
[1768375265720,2.56677871,144.51,144.49,0.66712781]
[1768375266107,2.56677871,144.51,144.48,0.2]
[1768375266298,2.56677871,144.51,144.49,0.66712781]
[1768375266994,1.84177871,144.51,144.48,0.63870243]
[1768375267708,2.56677871,144.53,144.49,0.43870243]
[1768375268228,0.66830148,144.52,144.48,7.31881313]
[1768375268408,2.56677871,144.53,144.49,0.66712781]
[1768375269506,2.56677871,144.54,144.49,0.38200391]
[1768375270503,0.66830148,144.53,144.49,0.38200391]
[1768375270707,0.14514952,144.54,144.49,0.66712781]
[1768375271601,2.56677871,144.54,144.52,0.66712781]
[1768375272934,3.23508019,144.54,144.49,0.66712781]
[1768375273309,2.56677871,144.54,144.49,0.66712781]
[1768375274630,0.66830148,144.53,144.49,0.66712781]
[1768375274804,1.9736112,144.56,144.5,0.66712781]
[1768375275338,2.56677871,144.53,144.49,0.66712781]
[1768375277621,3.23508019,144.53,144.49,0.66712781]
[1768375277820,0.66830148,144.51,144.48,6.8801107]
[1768375278130,2.56677871,144.51,144.49,0.66712781]
[1768375278321,2.56606843,144.55,144.49,0.66712781]
[1768375278521,2.56677871,144.51,144.49,0.66712781]
[1768375278722,9.48428521,144.55,144.49,0.66712781]
[1768375279025,6.91821678,144.55,144.48,7.55139623]
[1768375279210,2.56677871,144.51,144.48,7.55139623]
[1768375279404,9.48499549,144.55,144.48,7.55139623]
[1768375279619,2.56677871,144.5,144.49,0.67128553]
[1768375279824,2.56677871,144.5,144.48,6.8801107]
[1768375280124,2.56677871,144.5,144.48,7.55139623]
[1768375280315,1.75723378,144.5,144.48,6.8801107]
[1768375280514,2.56677871,144.51,144.49,0.67128553]
[1768375281313,2.56677871,144.51,144.48,6.8801107]
[1768375281727,2e-08,144.5,144.48,6.8801107]
[1768375281926,2.56677871,144.51,144.48,6.8801107]
[1768375282229,2.53677869,144.51,144.48,7.55139623]
[1768375282530,6.91850006,144.54,144.48,7.55139623]
[1768375282727,2.56677871,144.5,144.48,7.55139623]
[1768375283024,6.91850006,144.54,144.48,7.55139623]
[1768375283222,2.56677871,144.51,144.48,7.55139623]
[1768375284709,2.56677871,144.5,144.48,0.87128553]
[1768375284909,2.56677871,144.51,144.48,0.2]
[1768375285109,2.56677871,144.51,144.48,0.87128553]
[1768375285937,2.56677871,144.5,144.48,0.87128553]
[1768375286116,2.56677871,144.5,144.48,0.2]
[1768375286310,2.56677871,144.49,144.46,0.2]
[1768375286628,2.56677871,144.48,144.46,0.2]
[1768375287334,4.02161316,144.48,144.46,0.2]
[1768375287536,4.02161316,144.49,144.46,0.2]
[1768375288315,4.12952673,144.49,144.46,0.2]
[1768375288736,4.02161316,144.49,144.46,0.2]
[1768375289239,4.02161316,144.51,144.47,0.67128553]
[1768375290640,4.12061316,144.51,144.47,0.67128553]
[1768375291218,4.02161316,144.5,144.47,0.67128553]
[1768375291615,4.02161316,144.49,144.46,0.87128553]
[1768375291920,4.02161316,144.48,144.46,0.2]
[1768375292834,4.12511473,144.49,144.46,0.2]
[1768375294029,0.54470109,144.48,144.46,0.09099639]
[1768375302052,12.62,144.53,144.46,0.80638968]
[1768375302254,4.02161316,144.51,144.46,0.80638968]
[1768375304068,4.12061316,144.51,144.46,0.80638968]
[1768375304236,4.02161316,144.52,144.46,0.80638968]
[1768375304433,0.44124407,144.51,144.46,0.80638968]
[1768375304630,13.06124407,144.51,144.46,0.80638968]
[1768375304830,4.02161316,144.52,144.46,0.80638968]
[1768375304831,4.02161316,144.53,144.46,0.80638968]
[1768375305032,2.88062567,144.52,144.5,0.71539329]
[1768375305244,0.10242244,144.52,144.47,0.71539329]
[1768375305442,16.64161316,144.53,144.47,0.71539329]
[1768375305750,0.44124407,144.52,144.47,0.71539329]
[1768375306259,16.64161316,144.53,144.47,0.71539329]
[1768375306637,0.44124407,144.52,144.47,0.71539329]
[1768375307233,16.64161316,144.53,144.47,0.71539329]
[1768375308148,12.62,144.53,144.47,0.71539329]
[1768375308465,1.26328224,144.54,144.52,0.71539329]
[1768375308748,0.67258917,144.57,144.49,0.71539329]
[1768375309343,0.67258917,144.59,144.52,0.71539329]
[1768375309752,4.02161316,144.6,144.54,0.71539329]
[1768375310055,4.69420233,144.6,144.54,0.71539329]
[1768375310261,4.02161316,144.6,144.54,0.71539329]
[1768375310756,4.69420233,144.6,144.54,0.71539329]
[1768375312148,0.67258917,144.59,144.54,0.71539329]
[1768375312349,4.02161316,144.6,144.54,0.71539329]
[1768375312544,4.69420233,144.6,144.54,0.71539329]
[1768375312854,0.67258917,144.59,144.54,0.71539329]
[1768375313030,4.69420233,144.6,144.54,0.71539329]
[1768375313434,4.69420233,144.6,144.53,12.62]
[1768375313435,0.67258917,144.59,144.53,12.62]
[1768375313737,4.02161316,144.59,144.53,13.33539329]
[1768375313936,4.02161316,144.6,144.53,13.33539329]
[1768375314346,4.02161316,144.6,144.55,0.71539329]
[1768375315040,4.02161316,144.6,144.54,6.6801107]
[1768375315664,4.02161316,144.6,144.55,0.71539329]
[1768375315860,0.45817694,144.59,144.54,7.39550399]
[1768375316157,4.02161316,144.6,144.55,0.71539329]
[1768375316361,4.4797901,144.6,144.55,0.71539329]
[1768375317752,4.02161316,144.6,144.55,0.71539329]
[1768375317955,0.67044504,144.59,144.54,6.6801107]
[1768375318255,0.67044504,144.59,144.54,7.39550399]
[1768375318660,0.45817694,144.59,144.54,6.6801107]
[1768375318864,0.45817694,144.59,144.54,7.39550399]
[1768375319368,6.91487241,144.62,144.55,0.71539329]
[1768375319369,4.4797901,144.6,144.55,0.71539329]
[1768375320551,4.02161316,144.6,144.55,0.71539329]
[1768375320857,0.46029962,144.59,144.55,0.71539329]
[1768375321167,0.46029962,144.59,144.54,7.39550399]
[1768375321467,4.02161316,144.6,144.55,0.71539329]
[1768375321961,0.67044504,144.59,144.55,0.71539329]
[1768375322261,4.02161316,144.61,144.55,0.71539329]
[1768375322465,0.67044504,144.6,144.55,0.71539329]
[1768375322665,4.02161316,144.61,144.55,0.71539329]
[1768375324669,4.02161316,144.61,144.56,6.6801107]
[1768375324971,4.02161316,144.61,144.57,0.71539329]
[1768375325166,4.02161316,144.62,144.57,0.71539329]
[1768375326469,6.91328204,144.65,144.57,0.71539329]
[1768375326668,0.1,144.66,144.57,0.71539329]
[1768375326972,0.36228962,144.64,144.59,0.67612038]
[1768375327266,4.02161316,144.65,144.59,0.67612038]
[1768375327473,4.12161316,144.66,144.59,0.67612038]
[1768375330170,4.22061316,144.66,144.59,0.67612038]
[1768375330367,4.12161316,144.66,144.59,0.67612038]
[1768375330968,4.48390278,144.66,144.59,0.67612038]
[1768375331369,0.1,144.66,144.59,0.67612038]
[1768375333557,0.46228962,144.66,144.59,0.67612038]
[1768375333774,0.1,144.66,144.59,0.67612038]
[1768375334075,0.1,144.69,144.64,0.67612038]
[1768375334076,0.46494912,144.69,144.64,0.67612038]
[1768375334281,4.48656228,144.69,144.64,0.67612038]
[1768375335098,0.1,144.69,144.66,7.35623108]
[1768375335380,1.74417925,144.7,144.66,6.6801107]
[1768375336674,4.02161316,144.7,144.67,0.67612038]
[1768375337396,0.099,144.69,144.64,0.67612038]
[1768375337565,4.02161316,144.7,144.66,7.35623108]
[1768375337880,4.02161316,144.7,144.67,0.67612038]
[1768375338293,4.02161316,144.7,144.65,0.70181088]
[1768375338672,0.36327962,144.69,144.63,19.98192158]
[1768375338871,0.36327962,144.69,144.64,0.70181088]
[1768375339371,4.38489278,144.69,144.63,19.2801107]
[1768375339570,4.38489278,144.69,144.57,40.96627249]
[1768375339571,4.02161316,144.64,144.6,0.70181088]
[1768375339783,6.90941753,144.73,144.6,0.70181088]
[1768375339784,0.099,144.67,144.62,0.70181088]
[1768375339982,4.02161316,144.66,144.62,0.70181088]
[1768375340491,4.01220363,144.66,144.62,0.70181088]
[1768375341793,0.1016428,144.65,144.61,4.71401451]
[1768375341986,4.01220363,144.66,144.62,0.70181088]
[1768375343382,4.01220363,144.67,144.63,0.70181088]
[1768375343779,4.01220363,144.67,144.62,4.01220363]
[1768375344107,4.01220363,144.67,144.63,0.70181088]
[1768375344687,0.099,144.68,144.63,4.71401451]
[1768375345475,0.26908164,144.68,144.64,4.01220363]
[1768375345989,0.26908164,144.68,144.64,3.91048563]
[1768375347492,0.26908164,144.68,144.63,0.70181088]
[1768375347687,0.26908164,144.68,144.64,4.01220363]
[1768375349401,0.26908164,144.68,144.64,2.56706048]
[1768375349601,0.16908164,144.67,144.63,3.26887136]
[1768375352000,0.16908164,144.67,144.62,2.56706048]
[1768375352603,0.16908164,144.67,144.62,3.26887136]
[1768375353892,0.16908164,144.67,144.63,2.56706048]
[1768375354711,0.16908164,144.67,144.64,2.56706048]
[1768375356506,0.16908164,144.67,144.63,2.56706048]
[1768375359422,0.099,144.7,144.65,2.56706048]
[1768375359602,5.144809,144.69,144.65,2.56706048]
[1768375359917,2.56706048,144.7,144.65,2.56706048]
[1768375360119,5.1448073,144.69,144.65,2.56706048]
[1768375360300,2.56706048,144.7,144.65,2.56706048]
[1768375360499,5.14602691,144.69,144.65,2.56706048]
[1768375360725,6.91132766,144.69,144.65,2.56706048]
[1768375363403,5.15096016,144.68,144.64,2.56706048]
[1768375363603,9.47838814,144.69,144.64,2.56706048]
[1768375363830,5.1509635,144.68,144.64,3.25455026]
[1768375364028,2.56706048,144.66,144.6,0.68748978]
[1768375364225,2.56706048,144.66,144.61,2.56706048]
[1768375365122,2.56706048,144.67,144.61,3.25455026]
[1768375365315,2.56706048,144.67,144.61,0.68748978]
[1768375365519,2.56706048,144.66,144.61,3.25455026]
[1768375365704,2.56706048,144.67,144.61,3.25455026]
[1768375366323,5.1555433,144.66,144.61,3.25455026]
[1768375366521,2.56706048,144.67,144.61,3.25455026]
[1768375366705,5.15574564,144.66,144.61,3.25455026]
[1768375366907,2.56706048,144.67,144.61,3.25455026]
[1768375367219,5.15574731,144.66,144.61,3.25455026]
[1768375367425,2.56706048,144.67,144.61,3.25455026]
[1768375367619,5.15745907,144.66,144.61,3.25455026]
[1768375367801,9.47958083,144.67,144.61,3.25455026]
[1768375368002,5.15746074,144.66,144.61,3.25455026]
[1768375368222,9.47958083,144.67,144.61,3.25455026]
[1768375368425,5.15883374,144.66,144.62,3.25455026]
[1768375368628,6.91252035,144.67,144.62,3.25455026]
[1768375369128,5.16020198,144.66,144.62,3.25455026]
[1768375369327,9.47958083,144.67,144.62,3.25455026]
[1768375369528,5.16020365,144.66,144.62,3.25455026]
[1768375369829,9.47958083,144.67,144.62,3.25455026]
[1768375370016,5.16020365,144.66,144.62,3.25455026]
[1768375370212,9.47958083,144.67,144.62,3.25455026]
[1768375370525,5.16196621,144.66,144.62,3.25455026]
[1768375370724,9.47958083,144.67,144.62,3.25455026]
[1768375370914,5.16196788,144.66,144.62,3.25455026]
[1768375371117,9.47958083,144.67,144.62,3.25455026]
[1768375371318,5.16395958,144.66,144.62,3.25455026]
[1768375371529,9.47958083,144.67,144.62,3.25455026]
[1768375371730,5.16396128,144.66,144.62,3.25455026]
[1768375371933,9.47958083,144.67,144.62,3.25455026]
[1768375372233,5.16396128,144.66,144.62,3.25455026]
[1768375372432,9.47958083,144.67,144.62,3.25455026]
[1768375372633,5.16416817,144.66,144.62,3.25455026]
[1768375372833,9.47958083,144.67,144.62,3.25455026]
[1768375373131,5.16416649,144.66,144.62,3.25455026]
[1768375373319,9.47958083,144.67,144.62,3.25455026]
[1768375373520,5.16434176,144.66,144.62,3.25455026]
[1768375373741,9.47958083,144.67,144.62,3.25455026]
[1768375373930,5.16434009,144.66,144.62,3.25455026]
[1768375374125,9.47958083,144.67,144.62,3.25455026]
[1768375374322,5.16451037,144.66,144.62,0.68748978]
[1768375374620,9.47958083,144.67,144.62,3.25455026]
[1768375374821,5.1645087,144.66,144.62,3.25455026]
[1768375375035,9.47958083,144.67,144.62,3.25455026]
[1768375375233,5.16446917,144.66,144.62,3.25455026]
[1768375375413,9.47958083,144.67,144.62,3.25455026]
[1768375375613,5.1644675,144.66,144.62,2.56706048]
[1768375375922,9.47958083,144.67,144.62,2.56706048]
[1768375376123,5.1644675,144.66,144.62,2.56706048]
[1768375376329,9.47958083,144.67,144.62,2.56706048]
[1768375376530,5.16442584,144.66,144.62,2.56706048]
[1768375376740,9.47958083,144.67,144.62,2.56706048]
[1768375376939,5.16442417,144.66,144.62,2.56706048]
[1768375377245,5.16429803,144.65,144.62,2.56706048]
[1768375377419,2.56706048,144.66,144.61,2.56706048]
[1768375377619,5.16452287,144.65,144.6,3.25455026]
[1768375377838,2.56706048,144.66,144.6,3.25455026]
[1768375378137,5.16453297,144.65,144.6,3.25455026]
[1768375378431,2.56706048,144.66,144.6,3.25455026]
[1768375378735,5.16472007,144.65,144.6,3.25455026]
[1768375378936,5.16472007,144.64,144.6,3.25455026]
[1768375379149,2.56706048,144.65,144.6,3.25455026]
[1768375379349,5.16421522,144.64,144.6,3.25455026]
[1768375379516,2.56706048,144.65,144.6,3.25455026]
[1768375379712,5.16421522,144.64,144.6,3.25455026]
[1768375379928,2.56706048,144.65,144.6,3.25455026]
[1768375380149,5.16421355,144.64,144.6,3.25455026]
[1768375380323,2.56706048,144.65,144.6,3.25455026]
[1768375380523,5.16525963,144.64,144.6,3.25455026]
[1768375380750,2.56706048,144.65,144.6,3.25455026]
[1768375381043,5.16525963,144.64,144.6,3.25455026]
[1768375381255,2.56706048,144.65,144.6,3.25455026]
[1768375381539,5.16610522,144.64,144.6,0.68748978]
[1768375381840,9.48009335,144.66,144.6,3.25455026]
[1768375382142,5.16610522,144.65,144.6,3.25455026]
[1768375382437,5.16610522,144.64,144.6,3.25455026]
[1768375382740,2.56706048,144.63,144.58,3.25455026]
[1768375383231,2.56706048,144.63,144.58,0.68748978]
[1768375383430,2.56706048,144.62,144.56,3.25455026]
[1768375383635,2.56706048,144.62,144.56,0.68748978]
[1768375383835,2.56706048,144.62,144.56,3.25455026]
[1768375384034,2.56706048,144.62,144.57,3.25455026]
[1768375385344,2.56706048,144.62,144.57,0.68748978]
[1768375385518,2.56706048,144.62,144.57,3.25455026]
[1768375390528,2.56706048,144.62,144.57,0.68748978]
[1768375390829,2.56706048,144.62,144.55,0.70734074]
[1768375390830,2.56706048,144.6,144.55,0.70734074]
[1768375391234,6.91477368,144.62,144.55,0.70734074]
[1768375391434,7.72926739,144.61,144.56,0.70734074]
[1768375391636,5.16220691,144.6,144.56,0.70734074]
[1768375391834,2.56706048,144.6,144.56,0.70734074]
[1768375393750,2.56706048,144.6,144.55,3.27440122]
[1768375393939,5.15977655,144.59,144.55,3.27440122]
[1768375394146,2.56706048,144.6,144.55,3.27440122]
[1768375394337,5.15797836,144.59,144.55,3.27440122]
[1768375394542,2.56706048,144.6,144.55,3.27440122]
[1768375394735,5.15797677,144.59,144.55,3.27440122]
[1768375395044,9.48280486,144.6,144.55,3.27440122]
[1768375397533,2.56706048,144.59,144.53,11.22355216]
[1768375397733,2.56706048,144.59,144.53,3.27440122]
[1768375398049,2.56706048,144.59,144.54,0.70734074]
[1768375398432,2.56706048,144.58,144.54,0.70734074]
[1768375399327,9.48393595,144.58,144.54,0.70734074]
[1768375399731,6.91687547,144.58,144.54,0.70734074]
[1768375400765,6.91687547,144.58,144.53,3.23663605]
[1768375401247,6.91687547,144.58,144.54,0.66957557]
[1768375402045,6.91687547,144.58,144.53,3.23663605]
[1768375406738,6.91687547,144.58,144.54,0.66957557]
[1768375407658,6.91687547,144.58,144.55,0.66957557]
[1768375407841,6.91687547,144.58,144.51,0.66957557]
[1768375407842,7.7116689,144.57,144.51,0.66957557]
[1768375408040,2.56706048,144.57,144.51,3.23663605]
[1768375408258,2.56706048,144.57,144.52,0.66957557]
[1768375409363,4.01828217,144.57,144.52,0.66957557]
[1768375410656,55.31951919,144.6,144.48,0.66957557]
[1768375410657,24.75828217,144.55,144.48,0.66957557]
[1768375410859,4.01828217,144.53,144.48,0.66957557]
[1768375411161,5.14346761,144.54,144.49,0.66957557]
[1768375411162,4.01828217,144.54,144.49,0.66957557]
[1768375412959,6.91897875,144.53,144.49,0.66957557]
[1768375414459,6.91897875,144.53,144.45,0.2]
[1768375414460,33.36,144.52,144.45,0.2]
[1768375414654,5.13830471,144.51,144.46,0.66957557]
[1768375414857,6.92089417,144.49,144.43,4.21828217]
[1768375415471,11.60304615,144.49,144.38,6.8801107]
[1768375415658,4.01828217,144.48,144.42,4.21828217]
[1768375415846,4.12293087,144.48,144.42,4.21828217]
[1768375416166,0.6582776,144.47,144.38,0.2]
[1768375416347,0.6582776,144.47,144.41,4.01828217]
[1768375416544,37.51270518,144.49,144.43,4.01828217]
[1768375416766,0.099,144.48,144.38,0.2]
[1768375416956,7.02045074,144.48,144.44,0.6946586]
[1768375417267,7.02045074,144.48,144.43,4.01828217]
[1768375418066,7.02045074,144.48,144.38,0.2]
[1768375418273,7.02045074,144.48,144.43,4.01828217]
[1768375418471,7.02045074,144.48,144.38,0.2]
[1768375418653,7.02045074,144.48,144.43,4.01828217]
[1768375418862,7.02045074,144.48,144.38,0.2]
[1768375419062,7.02045074,144.48,144.43,4.01828217]
[1768375419264,7.02045074,144.48,144.38,0.2]
[1768375419559,7.02045074,144.48,144.43,4.01828217]
[1768375419770,0.099,144.48,144.44,4.01828217]
[1768375419973,0.099,144.48,144.39,63.0]
[1768375420172,0.099,144.48,144.44,4.01828217]
[1768375420848,0.099,144.48,144.39,0.2]
[1768375421075,0.099,144.48,144.43,4.01828217]
[1768375421453,0.099,144.48,144.44,0.6946586]
[1768375421654,0.099,144.48,144.43,4.01828217]
[1768375423691,0.099,144.48,144.43,4.1647308]
[1768375423978,0.099,144.48,144.44,4.01828217]
[1768375424181,8.40355116,144.49,144.45,4.1647308]
[1768375424854,7.72301022,144.49,144.46,0.14644863]
[1768375425293,7.72301022,144.49,144.47,0.14644863]
[1768375425659,7.72301022,144.49,144.47,4.1647308]
[1768375426163,7.72301022,144.49,144.47,0.14644863]
[1768375428190,5.25096645,144.49,144.46,4.01828217]
[1768375428362,5.25096645,144.49,144.47,4.01828217]
[1768375428690,0.68054094,144.51,144.43,12.62]
[1768375428691,0.68054094,144.51,144.48,4.01828217]
[1768375428855,0.68054094,144.52,144.48,4.01828217]
[1768375429054,0.68054094,144.52,144.5,4.01828217]
[1768375429255,0.68054094,144.53,144.5,4.01828217]
[1768375430258,0.68054094,144.53,144.47,0.6946586]
[1768375430476,0.68054094,144.53,144.49,4.01828217]
[1768375430804,0.68054094,144.53,144.48,0.6946586]
[1768375431077,0.68054094,144.53,144.5,0.6946586]
[1768375431874,7.59974634,144.53,144.49,4.01828217]
[1768375432070,7.59974634,144.53,144.49,4.71294077]
[1768375434283,7.59974634,144.53,144.5,0.6946586]
[1768375439479,0.68054094,144.52,144.48,4.01828217]
[1768375440387,0.68054094,144.52,144.48,4.71294077]
[1768375440686,0.68054094,144.52,144.49,0.6946586]
[1768375441397,7.599041,144.54,144.5,0.6946586]
[1768375441885,7.599041,144.54,144.5,4.71294077]
[1768375443100,12.62,144.55,144.51,0.6946586]
[1768375443284,7.59821265,144.56,144.52,4.71294077]
[1768375444395,7.59821265,144.56,144.53,0.6946586]
[1768375444779,0.68054094,144.56,144.53,0.6946586]
[1768375445831,0.68054094,144.56,144.53,4.71294077]
[1768375446204,5.15127984,144.55,144.53,4.71294077]
[1768375446378,0.68054094,144.56,144.53,4.71294077]
[1768375446579,0.67796477,144.57,144.54,4.01828217]
[1768375446800,0.67796477,144.58,144.55,4.01828217]
[1768375446976,0.67796477,144.58,144.55,3.95828217]
[1768375447380,0.67796477,144.58,144.55,4.62156655]
[1768375448780,0.67796477,144.58,144.56,4.01828217]
[1768375448986,0.67796477,144.58,144.55,4.68156655]
[1768375449185,0.67796477,144.58,144.55,4.01828217]
[1768375449375,0.67796477,144.58,144.55,4.68156655]
[1768375454221,0.67796477,144.58,144.55,0.66328438]
[1768375455308,0.67796477,144.57,144.53,4.68156655]
[1768375455709,0.67796477,144.57,144.54,4.01828217]
[1768375457394,0.67796477,144.57,144.53,4.68156655]
[1768375459617,11.62698597,144.58,144.54,0.70238826]
[1768375460845,7.6087038,144.58,144.54,0.70238826]
[1768375464924,0.69207212,144.58,144.54,0.70238826]
[1768375465128,0.69207212,144.58,144.55,0.70238826]
[1768375466627,0.69207212,144.58,144.54,4.01828217]
[1768375467130,0.69207212,144.58,144.55,0.70238826]
[1768375470721,7.6078917,144.6,144.56,0.70238826]
[1768375470922,5.8476317,144.59,144.56,0.70238826]
[1768375471125,5.15555958,144.58,144.56,0.70238826]
[1768375471436,0.69207212,144.59,144.55,2.57057749]
[1768375471637,5.15618863,144.58,144.56,0.70238826]
[1768375471838,0.69207212,144.59,144.56,0.70238826]
[1768375472037,5.15618695,144.58,144.56,0.70238826]
[1768375472341,0.69207212,144.59,144.56,0.70238826]
[1768375472521,5.15694237,144.58,144.56,0.70238826]
[1768375472719,0.69207212,144.59,144.56,0.70238826]
[1768375472922,5.15694404,144.58,144.56,0.70238826]
[1768375473142,0.69207212,144.59,144.56,0.70238826]
[1768375473334,5.15782739,144.58,144.56,0.70238826]
[1768375473533,0.69207212,144.59,144.56,0.70238826]
[1768375473734,5.15782571,144.58,144.56,0.70238826]
[1768375473937,0.69207212,144.59,144.56,0.70238826]
[1768375474122,5.15782571,144.58,144.56,0.70238826]
[1768375474323,0.69207212,144.59,144.56,0.70238826]
[1768375474635,5.15849041,144.58,144.56,0.70238826]
[1768375474841,0.69207212,144.59,144.56,0.70238826]
[1768375475139,5.15849379,144.58,144.56,0.70238826]
[1768375475441,0.68809869,144.59,144.56,0.66033988]
[1768375475632,5.15896614,144.58,144.56,0.66033988]
[1768375475862,0.68809869,144.59,144.56,0.66033988]
[1768375476037,5.15896614,144.58,144.56,0.66033988]
[1768375476240,0.68809869,144.59,144.56,0.66033988]
[1768375476438,5.15952251,144.58,144.56,0.66033988]
[1768375476639,0.68809869,144.59,144.56,0.66033988]
[1768375476832,5.15952419,144.58,144.56,0.66033988]
[1768375477019,0.68809869,144.57,144.54,0.66033988]
[1768375477521,3.25867618,144.57,144.53,0.66033988]
[1768375477725,5.84870442,144.56,144.53,0.66033988]
[1768375477928,0.68809869,144.56,144.53,0.66033988]
[1768375478127,0.68809869,144.57,144.53,0.66033988]
[1768375478331,5.16139927,144.56,144.53,0.66033988]
[1768375478531,3.25867618,144.57,144.53,0.66033988]
[1768375478733,5.16167743,144.56,144.53,0.66033988]
[1768375478933,0.68809869,144.57,144.53,0.66033988]
[1768375479133,5.16167743,144.56,144.53,3.23091737]
[1768375479344,0.68809869,144.57,144.53,2.57057749]
[1768375479525,0.68809869,144.55,144.53,2.57057749]
[1768375479924,0.68809869,144.55,144.54,2.57057749]
[1768375480127,0.68809869,144.55,144.53,2.57057749]
[1768375482626,0.68809869,144.55,144.51,0.66033988]
[1768375482951,0.68809869,144.55,144.53,2.57057749]
[1768375484742,10.17549282,144.58,144.54,0.66033988]